[Event "Late-Titled-Tuesday-Blitz-June-25-2024"]
[Site "Chess.com"]
[Date "2024.06.25"]
[Round "2"]
[White "schondeln"]
[Black "burbur555"]
[Result "0-1"]
[WhiteElo "2382"]
[BlackElo "2703"]
[TimeControl "180+1"]
[EndTime "14:16:48 PDT"]
[Termination "burbur555 won by resignation"]

1. e4 {[%clk 0:03:00.9]} 1... c6 {[%clk 0:02:59.6]} 2. Nc3 {[%clk 0:03:00.4]}
2... d5 {[%clk 0:03:00]} 3. Nf3 {[%clk 0:03:00.9]} 3... dxe4 {[%clk 0:03:00]} 4.
Nxe4 {[%clk 0:03:01.5]} 4... Nf6 {[%clk 0:03:00.1]} 5. Qe2 {[%clk 0:03:01.4]}
5... Nxe4 {[%clk 0:02:59.6]} 6. Qxe4 {[%clk 0:03:02.3]} 6... Be6 {[%clk
0:02:59.7]} 7. Bc4 {[%clk 0:02:53.9]} 7... Bxc4 {[%clk 0:02:58.1]} 8. Qxc4
{[%clk 0:02:54.8]} 8... Nd7 {[%clk 0:02:56.6]} 9. O-O {[%clk 0:02:53.8]} 9... e6
{[%clk 0:02:56]} 10. d4 {[%clk 0:02:52.2]} 10... Be7 {[%clk 0:02:55.4]} 11. c3
{[%clk 0:02:48.9]} 11... O-O {[%clk 0:02:54.5]} 12. Bf4 {[%clk 0:02:39.8]} 12...
Rc8 {[%clk 0:02:49.9]} 13. Qb3 {[%clk 0:02:33.8]} 13... Qb6 {[%clk 0:02:48.7]}
14. Qxb6 {[%clk 0:02:33.2]} 14... axb6 {[%clk 0:02:48.1]} 15. Rfd1 {[%clk
0:02:32.7]} 15... b5 {[%clk 0:02:40.8]} 16. a4 {[%clk 0:02:01.8]} 16... Ra8
{[%clk 0:02:38.2]} 17. axb5 {[%clk 0:02:01]} 17... cxb5 {[%clk 0:02:38.3]} 18.
Kf1 {[%clk 0:01:56.4]} 18... Nb6 {[%clk 0:02:32.8]} 19. Ke2 {[%clk 0:01:24.3]}
19... Ra4 {[%clk 0:02:17.7]} 20. Rxa4 {[%clk 0:01:15.9]} 20... bxa4 {[%clk
0:02:15.6]} 21. Ra1 {[%clk 0:01:15.5]} 21... Rc8 {[%clk 0:02:09.5]} 22. Kd3
{[%clk 0:01:05.2]} 22... Nc4 {[%clk 0:02:05.7]} 23. Bc1 {[%clk 0:01:04.8]} 23...
b5 {[%clk 0:02:04.8]} 24. Nd2 {[%clk 0:01:01]} 24... Nxd2 {[%clk 0:01:59]} 25.
Bxd2 {[%clk 0:00:59.7]} 25... Kf8 {[%clk 0:01:52.6]} 26. Re1 {[%clk 0:00:59]}
26... Ke8 {[%clk 0:01:47.9]} 27. Re5 {[%clk 0:00:57]} 27... Rb8 {[%clk
0:01:47.4]} 28. g4 {[%clk 0:00:52]} 28... Kd7 {[%clk 0:01:44.5]} 29. h3 {[%clk
0:00:51.3]} 29... f6 {[%clk 0:01:37.9]} 30. Re1 {[%clk 0:00:50.3]} 30... Bd6
{[%clk 0:01:35]} 31. f4 {[%clk 0:00:49.4]} 31... Kc6 {[%clk 0:01:33.8]} 32. f5
{[%clk 0:00:48.4]} 32... exf5 {[%clk 0:01:32.9]} 33. gxf5 {[%clk 0:00:49.3]}
33... Kd5 {[%clk 0:01:31.7]} 34. Re6 {[%clk 0:00:49.2]} 34... Rf8 {[%clk
0:01:24.4]} 35. Be3 {[%clk 0:00:33.3]} 35... g6 {[%clk 0:01:20.1]} 36. Re4
{[%clk 0:00:31.9]} 36... gxf5 {[%clk 0:01:18.4]} 37. Rh4 {[%clk 0:00:32]} 37...
Rf7 {[%clk 0:01:18.7]} 38. Bf4 {[%clk 0:00:28.1]} 38... Bxf4 {[%clk 0:01:16.2]}
39. Rxf4 {[%clk 0:00:29]} 39... Ke6 {[%clk 0:01:16.1]} 40. c4 {[%clk 0:00:26.4]}
40... bxc4+ {[%clk 0:01:14.8]} 41. Kxc4 {[%clk 0:00:26.8]} 41... Rc7+ {[%clk
0:01:13.2]} 42. Kb4 {[%clk 0:00:19.7]} 42... Rb7+ {[%clk 0:01:13.7]} 43. Kc4
{[%clk 0:00:15.6]} 43... Rxb2 {[%clk 0:01:12.6]} 44. Rh4 {[%clk 0:00:11.7]}
44... Rb7 {[%clk 0:01:09.9]} 45. Rf4 {[%clk 0:00:06]} 45... a3 {[%clk
0:01:07.8]} 46. Rf2 {[%clk 0:00:05.8]} 46... Ra7 {[%clk 0:01:05.1]} 47. Ra2
{[%clk 0:00:05.4]} 47... f4 {[%clk 0:01:04.1]} 48. Kd3 {[%clk 0:00:05.6]} 48...
Kd5 {[%clk 0:01:03.8]} 49. h4 {[%clk 0:00:04.4]} 49... h5 {[%clk 0:01:02.9]} 0-1

[Event "Late-Titled-Tuesday-Blitz-June-25-2024"]
[Site "Chess.com"]
[Date "2024.06.25"]
[Round "2"]
[White "ATM622"]
[Black "machupichu10"]
[Result "0-1"]
[WhiteElo "2567"]
[BlackElo "2834"]
[TimeControl "180+1"]
[EndTime "14:16:51 PDT"]
[Termination "machupichu10 won by resignation"]

1. d4 {[%clk 0:03:00.9]} 1... Nf6 {[%clk 0:02:59.1]} 2. c4 {[%clk 0:03:00.5]}
2... g6 {[%clk 0:02:57.1]} 3. g3 {[%clk 0:03:00.3]} 3... Bg7 {[%clk 0:02:56.8]}
4. Bg2 {[%clk 0:03:00.5]} 4... O-O {[%clk 0:02:55.7]} 5. Nf3 {[%clk 0:03:00]}
5... d5 {[%clk 0:02:55.7]} 6. O-O {[%clk 0:02:59.6]} 6... c6 {[%clk 0:02:43]} 7.
b3 {[%clk 0:02:57.5]} 7... Bg4 {[%clk 0:02:40.5]} 8. Bb2 {[%clk 0:02:57.3]} 8...
Bxf3 {[%clk 0:02:39.8]} 9. Bxf3 {[%clk 0:02:56.7]} 9... e6 {[%clk 0:02:40.3]}
10. Nc3 {[%clk 0:02:54.1]} 10... Re8 {[%clk 0:02:40.2]} 11. e4 {[%clk 0:02:52]}
11... dxe4 {[%clk 0:02:40.2]} 12. Nxe4 {[%clk 0:02:52.1]} 12... Nxe4 {[%clk
0:02:39.7]} 13. Bxe4 {[%clk 0:02:52.4]} 13... Nd7 {[%clk 0:02:40.4]} 14. Re1
{[%clk 0:02:47.3]} 14... Qa5 {[%clk 0:02:40.1]} 15. Bg2 {[%clk 0:02:43.4]} 15...
Rad8 {[%clk 0:02:40.4]} 16. Qc2 {[%clk 0:02:39.8]} 16... Nb6 {[%clk 0:02:31.7]}
17. Rad1 {[%clk 0:02:32.2]} 17... Bxd4 {[%clk 0:02:21]} 18. Bxd4 {[%clk
0:01:53.3]} 18... Rxd4 {[%clk 0:02:20.6]} 19. Rxd4 {[%clk 0:01:35.8]} 19...
Qxe1+ {[%clk 0:02:19.6]} 20. Bf1 {[%clk 0:01:36.2]} 20... e5 {[%clk 0:01:49.9]}
21. Re4 {[%clk 0:01:31.7]} 21... Qa5 {[%clk 0:01:31.7]} 22. Bh3 {[%clk
0:01:28.6]} 22... Rd8 {[%clk 0:01:18.7]} 23. Re2 {[%clk 0:01:24.6]} 23... Qc5
{[%clk 0:01:15.2]} 24. Qb2 {[%clk 0:01:18.5]} 24... f6 {[%clk 0:01:14.6]} 25.
Be6+ {[%clk 0:01:15.8]} 25... Kg7 {[%clk 0:01:14.5]} 26. Rd2 {[%clk 0:01:15.9]}
26... Qe7 {[%clk 0:01:01]} 27. Bh3 {[%clk 0:01:11.3]} 27... Na8 {[%clk
0:00:55.3]} 28. Qc1 {[%clk 0:01:03.2]} 28... Nc7 {[%clk 0:00:53.1]} 29. Qd1
{[%clk 0:01:03]} 29... Rxd2 {[%clk 0:00:52.7]} 30. Qxd2 {[%clk 0:01:03.9]} 30...
b6 {[%clk 0:00:51.3]} 31. Bd7 {[%clk 0:00:59.3]} 31... c5 {[%clk 0:00:50.6]} 32.
h4 {[%clk 0:00:55.8]} 32... h5 {[%clk 0:00:49.9]} 33. a4 {[%clk 0:00:47.8]}
33... a5 {[%clk 0:00:45]} 34. Bc6 {[%clk 0:00:39.7]} 34... Ne6 {[%clk
0:00:44.7]} 35. Qd5 {[%clk 0:00:28.4]} 35... Nd4 {[%clk 0:00:42.1]} 36. Bb5
{[%clk 0:00:23.6]} 36... e4 {[%clk 0:00:40.4]} 37. Kf1 {[%clk 0:00:09.4]} 37...
e3 {[%clk 0:00:38.4]} 38. Qd7 {[%clk 0:00:03.2]} 38... e2+ {[%clk 0:00:36.8]}
0-1

[Event "Late-Titled-Tuesday-Blitz-June-25-2024"]
[Site "Chess.com"]
[Date "2024.06.25"]
[Round "2"]
[White "KChor05"]
[Black "Dedic8"]
[Result "0-1"]
[WhiteElo "2603"]
[BlackElo "2945"]
[TimeControl "180+1"]
[EndTime "14:16:54 PDT"]
[Termination "Dedic8 won by resignation"]

1. e4 {[%clk 0:03:00.9]} 1... e5 {[%clk 0:03:00.4]} 2. Nf3 {[%clk 0:03:00.5]}
2... Nc6 {[%clk 0:03:01.1]} 3. Bb5 {[%clk 0:03:00.5]} 3... a6 {[%clk 0:03:01.2]}
4. Ba4 {[%clk 0:03:00.7]} 4... Nf6 {[%clk 0:03:01.1]} 5. O-O {[%clk 0:03:00.8]}
5... b5 {[%clk 0:03:01.8]} 6. Bb3 {[%clk 0:03:00.9]} 6... Bc5 {[%clk 0:03:02.5]}
7. d3 {[%clk 0:02:51.7]} 7... d6 {[%clk 0:03:02]} 8. h3 {[%clk 0:02:51]} 8... h6
{[%clk 0:03:02.2]} 9. c3 {[%clk 0:02:48]} 9... O-O {[%clk 0:03:01.3]} 10. a4
{[%clk 0:02:47.3]} 10... Rb8 {[%clk 0:02:58.7]} 11. axb5 {[%clk 0:02:45.9]}
11... axb5 {[%clk 0:02:58.7]} 12. Nbd2 {[%clk 0:02:44.1]} 12... b4 {[%clk
0:02:54.3]} 13. Nc4 {[%clk 0:02:22.1]} 13... bxc3 {[%clk 0:02:53.9]} 14. bxc3
{[%clk 0:02:23]} 14... Be6 {[%clk 0:02:54.4]} 15. Ba4 {[%clk 0:02:18.7]} 15...
Bxc4 {[%clk 0:02:48.9]} 16. Bxc6 {[%clk 0:02:15.9]} 16... Bb3 {[%clk 0:02:47.1]}
17. Qe2 {[%clk 0:02:07.9]} 17... Rb6 {[%clk 0:02:46.9]} 18. Ba8 {[%clk
0:01:37.6]} 18... d5 {[%clk 0:02:04.3]} 19. exd5 {[%clk 0:01:22.3]} 19... Nxd5
{[%clk 0:02:01.9]} 20. Bxd5 {[%clk 0:01:09.2]} 20... Bxd5 {[%clk 0:02:02]} 21.
Nxe5 {[%clk 0:01:07.4]} 21... Re8 {[%clk 0:01:43.8]} 22. d4 {[%clk 0:01:06.8]}
22... Bd6 {[%clk 0:01:08.3]} 23. c4 {[%clk 0:01:00.9]} 23... Bb7 {[%clk
0:00:58.2]} 24. c5 {[%clk 0:00:48.3]} 24... Bxe5 {[%clk 0:00:57.8]} 25. dxe5
{[%clk 0:00:46.8]} 25... Rg6 {[%clk 0:00:57.4]} 26. g3 {[%clk 0:00:41.4]} 26...
Qd5 {[%clk 0:00:50.7]} 27. f3 {[%clk 0:00:30.1]} 27... Rxe5 {[%clk 0:00:35.6]}
28. Qf2 {[%clk 0:00:24.9]} 28... Rf5 {[%clk 0:00:35.9]} 29. Ra3 {[%clk
0:00:19.8]} 29... Rgf6 {[%clk 0:00:36.1]} 30. Kg2 {[%clk 0:00:16.3]} 30... Rxf3
{[%clk 0:00:25.5]} 31. Rxf3 {[%clk 0:00:11.5]} 31... Rxf3 {[%clk 0:00:25.9]} 32.
Qxf3 {[%clk 0:00:11.7]} 32... Qa2+ {[%clk 0:00:26]} 33. Rf2 {[%clk 0:00:12.2]}
33... Bxf3+ {[%clk 0:00:25.8]} 34. Kxf3 {[%clk 0:00:13.1]} 34... Qd5+ {[%clk
0:00:24.9]} 35. Ke2 {[%clk 0:00:11.4]} 35... Qc4+ {[%clk 0:00:22.4]} 36. Kd1
{[%clk 0:00:09.1]} 36... Qxc5 {[%clk 0:00:21.7]} 37. Re2 {[%clk 0:00:09.3]}
37... Qg1+ {[%clk 0:00:21]} 0-1

[Event "Late-Titled-Tuesday-Blitz-June-25-2024"]
[Site "Chess.com"]
[Date "2024.06.25"]
[Round "2"]
[White "s-dshubin"]
[Black "ivanquiroga"]
[Result "0-1"]
[WhiteElo "2298"]
[BlackElo "2517"]
[TimeControl "180+1"]
[EndTime "14:16:55 PDT"]
[Termination "ivanquiroga won by checkmate"]

1. e4 {[%clk 0:03:00.9]} 1... e5 {[%clk 0:02:57.1]} 2. Nf3 {[%clk 0:02:59.6]}
2... Nc6 {[%clk 0:02:57.5]} 3. Bc4 {[%clk 0:02:59.6]} 3... Bc5 {[%clk
0:02:57.1]} 4. c3 {[%clk 0:02:59.8]} 4... Nf6 {[%clk 0:02:57.5]} 5. d4 {[%clk
0:03:00.7]} 5... exd4 {[%clk 0:02:57.9]} 6. cxd4 {[%clk 0:03:01.6]} 6... Bb4+
{[%clk 0:02:58.3]} 7. Bd2 {[%clk 0:03:02.1]} 7... Bxd2+ {[%clk 0:02:58.4]} 8.
Nbxd2 {[%clk 0:03:03]} 8... d5 {[%clk 0:02:58.5]} 9. exd5 {[%clk 0:03:03.9]}
9... Nxd5 {[%clk 0:02:59.1]} 10. Qb3 {[%clk 0:03:04.2]} 10... Na5 {[%clk
0:02:58.9]} 11. Qa4+ {[%clk 0:03:04.3]} 11... Nc6 {[%clk 0:02:59.2]} 12. Qb3
{[%clk 0:03:04.9]} 12... Nce7 {[%clk 0:02:59.5]} 13. O-O {[%clk 0:03:04.9]}
13... O-O {[%clk 0:02:59.1]} 14. Rfe1 {[%clk 0:03:05.2]} 14... h6 {[%clk
0:02:54.9]} 15. Ne4 {[%clk 0:03:04]} 15... b6 {[%clk 0:02:51.7]} 16. Ne5 {[%clk
0:03:00.3]} 16... Bb7 {[%clk 0:02:38.1]} 17. Rac1 {[%clk 0:02:52.3]} 17... Rb8
{[%clk 0:02:37]} 18. Nc3 {[%clk 0:02:48.2]} 18... c6 {[%clk 0:02:19.5]} 19. Nxd5
{[%clk 0:02:41.6]} 19... Nxd5 {[%clk 0:02:18.1]} 20. Bxd5 {[%clk 0:02:41]} 20...
cxd5 {[%clk 0:02:19]} 21. Qa3 {[%clk 0:02:29.1]} 21... a5 {[%clk 0:02:12.8]} 22.
Qb3 {[%clk 0:02:13.1]} 22... Re8 {[%clk 0:02:11.7]} 23. Nd3 {[%clk 0:01:57.9]}
23... Qf6 {[%clk 0:02:09.3]} 24. Rxe8+ {[%clk 0:01:49.8]} 24... Rxe8 {[%clk
0:02:10.2]} 25. Rc7 {[%clk 0:01:45]} 25... Ba6 {[%clk 0:01:52.2]} 26. Ne5 {[%clk
0:01:44.9]} 26... Qf4 {[%clk 0:01:51.9]} 27. Qxb6 {[%clk 0:01:32.3]} 27... Bc4
{[%clk 0:01:26.7]} 28. g3 {[%clk 0:01:22.6]} 28... Qc1+ {[%clk 0:01:22.8]} 29.
Kg2 {[%clk 0:01:22.7]} 29... Bf1+ {[%clk 0:01:14.6]} 30. Kg1 {[%clk 0:01:22.4]}
30... Bc4+ {[%clk 0:01:12]} 31. Kg2 {[%clk 0:01:22.4]} 31... Qf1+ {[%clk
0:01:10.2]} 32. Kf3 {[%clk 0:01:22.2]} 32... Qd1+ {[%clk 0:00:57.7]} 33. Kf4
{[%clk 0:01:09.6]} 33... g5+ {[%clk 0:00:45.1]} 34. Kf5 {[%clk 0:00:54.9]} 34...
Bd3+ {[%clk 0:00:26.6]} 35. Kf6 {[%clk 0:00:54.4]} 35... Qe2 {[%clk 0:00:19.3]}
36. f4 {[%clk 0:00:36.9]} 36... Qe4 {[%clk 0:00:19]} 37. Qe6 {[%clk 0:00:09.8]}
37... Rxe6# {[%clk 0:00:16.5]} 0-1

[Event "Late-Titled-Tuesday-Blitz-June-25-2024"]
[Site "Chess.com"]
[Date "2024.06.25"]
[Round "2"]
[White "giomar27"]
[Black "MuhittinBuker"]
[Result "0-1"]
[WhiteElo "2466"]
[BlackElo "2235"]
[TimeControl "180+1"]
[EndTime "14:16:58 PDT"]
[Termination "MuhittinBuker won by resignation"]

1. Nc3 {[%clk 0:03:00.9]} 1... d5 {[%clk 0:02:57.8]} 2. d4 {[%clk 0:03:01.4]}
2... Nf6 {[%clk 0:02:55.6]} 3. Bf4 {[%clk 0:03:01.9]} 3... e6 {[%clk 0:02:54.7]}
4. e3 {[%clk 0:03:02.4]} 4... Bd6 {[%clk 0:02:54.9]} 5. Qf3 {[%clk 0:03:01.6]}
5... Bxf4 {[%clk 0:02:54]} 6. Qxf4 {[%clk 0:03:01.5]} 6... Qd6 {[%clk
0:02:53.6]} 7. Qg3 {[%clk 0:03:00.7]} 7... a6 {[%clk 0:02:52.8]} 8. Bd3 {[%clk
0:02:59.7]} 8... Qxg3 {[%clk 0:02:51.4]} 9. hxg3 {[%clk 0:02:59.3]} 9... h6
{[%clk 0:02:50.1]} 10. Nf3 {[%clk 0:02:58.6]} 10... Ke7 {[%clk 0:02:49.9]} 11.
Ne5 {[%clk 0:02:56.4]} 11... Nbd7 {[%clk 0:02:49]} 12. f4 {[%clk 0:02:55.8]}
12... c5 {[%clk 0:02:45.9]} 13. Nxd7 {[%clk 0:02:51.4]} 13... Bxd7 {[%clk
0:02:44.9]} 14. dxc5 {[%clk 0:02:51.3]} 14... Rhc8 {[%clk 0:02:37.6]} 15. Ne2
{[%clk 0:02:42.2]} 15... Rxc5 {[%clk 0:02:36.1]} 16. c3 {[%clk 0:02:42.5]} 16...
Ng4 {[%clk 0:02:33.6]} 17. Kd2 {[%clk 0:02:42.2]} 17... f5 {[%clk 0:02:31.7]}
18. Nd4 {[%clk 0:02:41.3]} 18... Rac8 {[%clk 0:02:29.6]} 19. Be2 {[%clk
0:02:39.6]} 19... Nf6 {[%clk 0:02:28.8]} 20. Bf3 {[%clk 0:02:39.5]} 20... b5
{[%clk 0:02:22.9]} 21. Rhc1 {[%clk 0:02:37.8]} 21... Rc4 {[%clk 0:02:21.8]} 22.
Be2 {[%clk 0:02:32.1]} 22... R4c5 {[%clk 0:02:21]} 23. Bd3 {[%clk 0:02:31.7]}
23... Be8 {[%clk 0:02:19.7]} 24. a4 {[%clk 0:02:30.5]} 24... bxa4 {[%clk
0:02:12.3]} 25. Bxa6 {[%clk 0:02:30.2]} 25... Rb8 {[%clk 0:02:10.3]} 26. Ra2
{[%clk 0:02:27.6]} 26... Ne4+ {[%clk 0:02:09.3]} 27. Kc2 {[%clk 0:02:18.3]}
27... Nxg3 {[%clk 0:02:09.6]} 28. Bd3 {[%clk 0:02:17.4]} 28... Nh5 {[%clk
0:02:07]} 29. Nf3 {[%clk 0:02:14.9]} 29... Nf6 {[%clk 0:02:05.6]} 30. Ne5 {[%clk
0:02:14.5]} 30... Rc7 {[%clk 0:01:57.1]} 31. Rg1 {[%clk 0:02:07.9]} 31... h5
{[%clk 0:01:55.4]} 32. Kd2 {[%clk 0:02:03.8]} 32... Bb5 {[%clk 0:01:52.4]} 33.
Bc2 {[%clk 0:02:02.8]} 33... Ne4+ {[%clk 0:01:41.9]} 34. Bxe4 {[%clk 0:02:02.2]}
34... dxe4 {[%clk 0:01:42]} 35. Rc1 {[%clk 0:01:55.4]} 35... Be8 {[%clk
0:01:42.2]} 36. c4 {[%clk 0:01:51.8]} 36... Rc5 {[%clk 0:01:39.8]} 37. Kc3
{[%clk 0:01:49.2]} 37... Rb3+ {[%clk 0:01:38.3]} 38. Kc2 {[%clk 0:01:49.2]}
38... Kf6 {[%clk 0:01:37]} 39. Rd1 {[%clk 0:01:48.7]} 39... Rxe3 {[%clk
0:01:19.5]} 40. Rd8 {[%clk 0:01:47.5]} 40... Ke7 {[%clk 0:01:18.4]} 41. Ra8
{[%clk 0:01:39.5]} 41... Re2+ {[%clk 0:01:17.6]} 42. Kd1 {[%clk 0:01:39.3]}
42... Rxg2 {[%clk 0:01:17.6]} 43. Ra7+ {[%clk 0:01:39.4]} 43... Kf6 {[%clk
0:01:16.5]} 44. Ra8 {[%clk 0:01:38.5]} 44... Ke7 {[%clk 0:01:10.8]} 45. Ra7+
{[%clk 0:01:38.2]} 45... Kf8 {[%clk 0:01:10.9]} 46. Ra8 {[%clk 0:01:36.1]} 46...
Rxe5 {[%clk 0:01:06.8]} 47. fxe5 {[%clk 0:01:34.7]} 47... h4 {[%clk 0:01:07.2]}
48. Ra3 {[%clk 0:01:28.3]} 48... Rg3 {[%clk 0:01:01.1]} 49. Rxg3 {[%clk
0:01:25.6]} 49... hxg3 {[%clk 0:01:00.7]} 50. Ke2 {[%clk 0:01:26.5]} 50... f4
{[%clk 0:01:00.6]} 51. c5 {[%clk 0:01:21.8]} 51... Ke7 {[%clk 0:00:53.1]} 52.
Ra7+ {[%clk 0:01:20.6]} 52... Kd8 {[%clk 0:00:52.1]} 53. Rxg7 {[%clk 0:01:20.5]}
53... Bc6 {[%clk 0:00:48.4]} 54. Rg4 {[%clk 0:01:18.2]} 54... f3+ {[%clk
0:00:43.2]} 55. Ke3 {[%clk 0:01:13.5]} 55... g2 {[%clk 0:00:41.2]} 56. Kf2
{[%clk 0:01:06.8]} 56... e3+ {[%clk 0:00:39.6]} 57. Kxe3 {[%clk 0:01:04.1]}
57... Bd5 {[%clk 0:00:36.7]} 58. Kf2 {[%clk 0:01:02.3]} 58... Kc7 {[%clk
0:00:37.1]} 59. Rxa4 {[%clk 0:01:01.8]} 59... Kc6 {[%clk 0:00:37.5]} 60. b4
{[%clk 0:01:01.9]} 60... Kb5 {[%clk 0:00:37]} 61. Ra6 {[%clk 0:00:59.3]} 61...
Kxa6 {[%clk 0:00:36.4]} 0-1

[Event "Late-Titled-Tuesday-Blitz-June-25-2024"]
[Site "Chess.com"]
[Date "2024.06.25"]
[Round "2"]
[White "Talent-OF-Slovenia"]
[Black "BlueWizzard"]
[Result "1/2-1/2"]
[WhiteElo "2427"]
[BlackElo "2927"]
[TimeControl "180+1"]
[EndTime "14:17:01 PDT"]
[Termination "Game drawn - insufficient material"]

1. e4 {[%clk 0:03:00.9]} 1... g6 {[%clk 0:03:00.8]} 2. d4 {[%clk 0:03:00.1]}
2... d5 {[%clk 0:03:01.5]} 3. exd5 {[%clk 0:02:58.9]} 3... Qxd5 {[%clk
0:03:02.4]} 4. Nc3 {[%clk 0:02:57.9]} 4... Qd8 {[%clk 0:03:00.8]} 5. Nf3 {[%clk
0:02:57.3]} 5... Bg7 {[%clk 0:03:01.3]} 6. Bf4 {[%clk 0:02:54.2]} 6... Nh6
{[%clk 0:03:01.3]} 7. Qd2 {[%clk 0:02:53.3]} 7... Nf5 {[%clk 0:03:01.3]} 8.
O-O-O {[%clk 0:02:52.6]} 8... c6 {[%clk 0:02:59.5]} 9. g4 {[%clk 0:02:51.6]}
9... Nd6 {[%clk 0:02:58.8]} 10. h3 {[%clk 0:02:51]} 10... Be6 {[%clk 0:02:57.3]}
11. Be5 {[%clk 0:02:33]} 11... O-O {[%clk 0:02:53]} 12. Bxg7 {[%clk 0:02:31.5]}
12... Kxg7 {[%clk 0:02:53.9]} 13. Ng5 {[%clk 0:02:28.2]} 13... Bd5 {[%clk
0:02:51.2]} 14. Nxd5 {[%clk 0:02:27.1]} 14... cxd5 {[%clk 0:02:52.1]} 15. h4
{[%clk 0:02:26.9]} 15... h6 {[%clk 0:02:48.8]} 16. Nf3 {[%clk 0:02:25.9]} 16...
e6 {[%clk 0:02:47]} 17. Bd3 {[%clk 0:02:23]} 17... Nc6 {[%clk 0:02:45.9]} 18. c3
{[%clk 0:02:21.7]} 18... b5 {[%clk 0:02:45.5]} 19. Ne5 {[%clk 0:02:19.8]} 19...
Rc8 {[%clk 0:02:40]} 20. h5 {[%clk 0:02:07.2]} 20... g5 {[%clk 0:02:34.5]} 21.
f4 {[%clk 0:02:02.7]} 21... b4 {[%clk 0:02:30.2]} 22. fxg5 {[%clk 0:01:59.7]}
22... bxc3 {[%clk 0:02:12.8]} 23. gxh6+ {[%clk 0:01:58]} 23... Kh8 {[%clk
0:02:13.4]} 24. bxc3 {[%clk 0:01:49.4]} 24... Nxe5 {[%clk 0:02:10]} 25. dxe5
{[%clk 0:01:48.2]} 25... Nc4 {[%clk 0:02:09.3]} 26. Qf4 {[%clk 0:01:43.8]} 26...
Qe7 {[%clk 0:01:56.4]} 27. Qf6+ {[%clk 0:01:40.5]} 27... Qxf6 {[%clk 0:01:56.3]}
28. exf6 {[%clk 0:01:41.4]} 28... Rg8 {[%clk 0:01:54.7]} 29. Bg6 {[%clk
0:01:28.4]} 29... Ne5 {[%clk 0:01:44.6]} 30. h7 {[%clk 0:01:27.5]} 30... Rgd8
{[%clk 0:01:39.4]} 31. Rhe1 {[%clk 0:01:18.7]} 31... Nxg4 {[%clk 0:01:29.8]} 32.
Bxf7 {[%clk 0:01:16.9]} 32... Rxc3+ {[%clk 0:01:28.5]} 33. Kb2 {[%clk
0:01:15.8]} 33... Rf3 {[%clk 0:01:16.4]} 34. Bxe6 {[%clk 0:01:07.1]} 34... Nxf6
{[%clk 0:01:16.4]} 35. Rf1 {[%clk 0:01:00]} 35... Rxf1 {[%clk 0:01:09.9]} 36.
Rxf1 {[%clk 0:00:57.5]} 36... Nxh7 {[%clk 0:01:10.8]} 37. Rf5 {[%clk 0:00:50.9]}
37... d4 {[%clk 0:01:07.3]} 38. Kc2 {[%clk 0:00:51.1]} 38... Rd6 {[%clk
0:01:02.4]} 39. Bc4 {[%clk 0:00:50.4]} 39... Nf6 {[%clk 0:00:58.1]} 40. Kd3
{[%clk 0:00:49]} 40... Kg7 {[%clk 0:00:56]} 41. Rf4 {[%clk 0:00:44.5]} 41...
Nxh5 {[%clk 0:00:42.7]} 42. Rxd4 {[%clk 0:00:43.8]} 42... Rxd4+ {[%clk
0:00:40.9]} 43. Kxd4 {[%clk 0:00:44.7]} 43... Kf6 {[%clk 0:00:41.7]} 44. Kc5
{[%clk 0:00:44.6]} 44... Ke7 {[%clk 0:00:40.3]} 45. Kc6 {[%clk 0:00:44.6]} 45...
Nf6 {[%clk 0:00:38.1]} 46. a4 {[%clk 0:00:42.3]} 46... a5 {[%clk 0:00:38]} 47.
Kb5 {[%clk 0:00:40.8]} 47... Kd6 {[%clk 0:00:38.9]} 48. Kxa5 {[%clk 0:00:40.7]}
48... Kc7 {[%clk 0:00:39.8]} 49. Ka6 {[%clk 0:00:40.7]} 49... Nd7 {[%clk
0:00:31.7]} 50. a5 {[%clk 0:00:39.8]} 50... Nc5+ {[%clk 0:00:28.6]} 51. Kb5
{[%clk 0:00:37.9]} 51... Nb7 {[%clk 0:00:25.3]} 52. Bd5 {[%clk 0:00:37.8]} 52...
Nxa5 {[%clk 0:00:25.6]} 1/2-1/2

[Event "Late-Titled-Tuesday-Blitz-June-25-2024"]
[Site "Chess.com"]
[Date "2024.06.25"]
[Round "2"]
[White "Grossboss19"]
[Black "hansen"]
[Result "0-1"]
[WhiteElo "2610"]
[BlackElo "2991"]
[TimeControl "180+1"]
[EndTime "14:17:02 PDT"]
[Termination "hansen won by resignation"]

1. c4 {[%clk 0:03:00.9]} 1... e5 {[%clk 0:02:47.2]} 2. Nf3 {[%clk 0:02:59]} 2...
Nc6 {[%clk 0:02:46.4]} 3. Nc3 {[%clk 0:02:58.6]} 3... Bb4 {[%clk 0:02:45]} 4. g3
{[%clk 0:02:51.8]} 4... Bxc3 {[%clk 0:02:43.8]} 5. bxc3 {[%clk 0:02:45.9]} 5...
d6 {[%clk 0:02:27.3]} 6. Bg2 {[%clk 0:02:44.2]} 6... h6 {[%clk 0:02:24.4]} 7.
O-O {[%clk 0:02:41.6]} 7... Nf6 {[%clk 0:02:24.8]} 8. d3 {[%clk 0:02:37.8]} 8...
O-O {[%clk 0:02:21.7]} 9. Ne1 {[%clk 0:02:37.6]} 9... Be6 {[%clk 0:01:43.8]} 10.
Rb1 {[%clk 0:02:35.5]} 10... Rb8 {[%clk 0:01:41.6]} 11. Nc2 {[%clk 0:02:34.8]}
11... d5 {[%clk 0:01:40.8]} 12. cxd5 {[%clk 0:02:29.3]} 12... Bxd5 {[%clk
0:01:39.7]} 13. Bxd5 {[%clk 0:02:24]} 13... Qxd5 {[%clk 0:01:38.2]} 14. c4
{[%clk 0:02:22.8]} 14... Qe6 {[%clk 0:01:38.4]} 15. f3 {[%clk 0:02:15]} 15...
Rfd8 {[%clk 0:01:37.8]} 16. Rf2 {[%clk 0:01:56.9]} 16... e4 {[%clk 0:01:36.3]}
17. Bb2 {[%clk 0:01:45.1]} 17... exd3 {[%clk 0:01:28.7]} 18. exd3 {[%clk
0:01:46]} 18... Qf5 {[%clk 0:01:27.3]} 19. Ne1 {[%clk 0:01:43.1]} 19... Nd4
{[%clk 0:01:26]} 20. Bxd4 {[%clk 0:01:41.5]} 20... Rxd4 {[%clk 0:01:26.1]} 21.
Qa4 {[%clk 0:01:37.9]} 21... a6 {[%clk 0:01:18.7]} 22. Kg2 {[%clk 0:01:32.1]}
22... Qd7 {[%clk 0:01:00.3]} 23. Qxd7 {[%clk 0:01:28.6]} 23... Nxd7 {[%clk
0:01:00.6]} 24. Rfb2 {[%clk 0:01:15.4]} 24... Nc5 {[%clk 0:00:59.7]} 25. Kf1
{[%clk 0:00:57.6]} 25... Rbd8 {[%clk 0:00:54]} 26. Rd2 {[%clk 0:00:49.8]} 26...
Rxc4 {[%clk 0:00:52.4]} 27. dxc4 {[%clk 0:00:50.7]} 27... Rxd2 {[%clk
0:00:52.3]} 28. a3 {[%clk 0:00:48.3]} 28... Rxh2 {[%clk 0:00:50.4]} 29. Rd1
{[%clk 0:00:48]} 29... Ra2 {[%clk 0:00:46]} 30. Rd5 {[%clk 0:00:42.8]} 30... b6
{[%clk 0:00:45.8]} 31. Rd8+ {[%clk 0:00:41.8]} 31... Kh7 {[%clk 0:00:46]} 32.
Rc8 {[%clk 0:00:41.8]} 32... Ne6 {[%clk 0:00:45.3]} 33. f4 {[%clk 0:00:39.8]}
33... Kg6 {[%clk 0:00:38.1]} 34. g4 {[%clk 0:00:38]} 34... f5 {[%clk 0:00:35.5]}
35. Re8 {[%clk 0:00:30.1]} 35... Kf7 {[%clk 0:00:35.4]} 36. Rc8 {[%clk
0:00:30.4]} 36... Kf6 {[%clk 0:00:35.7]} 37. Ng2 {[%clk 0:00:23.1]} 37... fxg4
{[%clk 0:00:29.9]} 38. Ne3 {[%clk 0:00:20.6]} 38... h5 {[%clk 0:00:29.9]} 39. f5
{[%clk 0:00:19.5]} 39... Nd4 {[%clk 0:00:23.5]} 40. Rxc7 {[%clk 0:00:19.3]}
40... Nxf5 {[%clk 0:00:22.6]} 41. Nd5+ {[%clk 0:00:18.9]} 41... Kg5 {[%clk
0:00:22.7]} 42. Nxb6 {[%clk 0:00:18.8]} 42... h4 {[%clk 0:00:21.5]} 43. Nd5
{[%clk 0:00:16.7]} 43... h3 {[%clk 0:00:21.8]} 44. Rc8 {[%clk 0:00:16.3]} 44...
h2 {[%clk 0:00:21.4]} 45. Rh8 {[%clk 0:00:16.4]} 45... Nh4 {[%clk 0:00:21.4]}
0-1